[Event "Cabo Verde Open 2022"]
[Site "Mindelo-S. Vicente"]
[Date "2022.04.26"]
[Round "5.6"]
[White "Ferreira, Paulo"]
[Black "Caxita, Esperanca"]
[Result "1-0"]
[ECO "D51"]
[WhiteElo "2073"]
[BlackElo "1910"]
[Annotator "TA"]
[PlyCount "49"]
[EventDate "2022.04.22"]
[EventType "swiss"]
[SourceTitle "playchess.com"]
[Source "ChessBase"]
[SourceQuality "1"]
[TimeControl "40/5400+30:1800+30"]

{[%evp 11,49,-25,0,7,4,0,16,1,5,0,31,17,24,-11,-8,-10,2,-13,-8,-4,-3,0,53,57,82,70,136,114,1776,189,176,172,256,166,329,235,273,262,331,297]} 1. d4 {[%emt 0:02:51]} d5 {[%emt 0:00:12]} 2. c4 {[%emt 0:00:34]} c6 {[%emt 0:00:18]} 3. Nf3 {[%emt 0:00:28]} Nf6 {[%emt 0:00:41]} 4. Nc3 {[%emt 0:01:36]} Nbd7 {[%emt 0:01:08]} 5. Qc2 {[%emt 0:02:06]} e6 {[%emt 0:00:51]} 6. Bg5 {[%emt 0:01:19]} h6 {[%emt 0:02:21] is recently more successful than 6...Be7.} 7. Bxf6 {[%emt 0:04:00] D51: Queen's Gambit Declined: 4 Bg5 Nbd7 sidelines.} Nxf6 {[%emt 0:00:26]} 8. e3 {[%emt 0:00:14]} Bb4 {[%emt 0:02:50]} 9. Bd3 {[%emt 0:00:17] The position is equal.} dxc4 {[%emt 0:03:00]} 10. Bxc4 {[%emt 0:00:28] [#]} Bxc3+ $146 {[%emt 0:00:17]} ({Predecessor:} 10... c5 11. O-O cxd4 12. exd4 O-O 13. a3 Be7 14. b4 Qc7 15. Qb3 a6 16. a4 b6 17. d5 exd5 18. Nxd5 Nxd5 19. Bxd5 Bb7 20. Rac1 Bxd5 21. Qxd5 Qd6 22. Qxd6 {½-½ (22) Czebe,A (2485)-Fodor,T (2430) Budapest 2009}) 11. bxc3 {[%emt 0:00:27]} O-O {[%emt 0:00:19]} 12. e4 {[%emt 0:03:37]} b5 {[%emt 0:01:42]} 13. Bd3 {[%emt 0:02:57]} Bb7 {[%emt 0:00:13][%cal Oc6c5]} 14. Rb1 {[%emt 0:02:39]} Rc8 {[%emt 0:02:11]} 15. O-O {[%emt 0:01:36]} a6 {[%emt 0:02:07]} 16. e5 {[%emt 0:14:27]} Nd5 {[%emt 0:01:48]} (16... Nd7 $1 $11) 17. c4 $1 $36 {[%emt 0:01:21][%mdl 2048] White is pushing.} Nf4 {[%emt 0:04:21]} 18. Be4 {[%emt 0:01:56]} f5 {[%emt 0:05:11]} (18... Rc7 $14) 19. exf6 $1 $16 {[%emt 0:00:30]} Qe7 $2 {[%emt 1:10:04][%mdl 8192] [#] This costs Black the game.} 20. f7+ $2 (20. fxe7 Rf7 21. g3) 20... Qxf7 {[%emt 0:00:00]} 21. Ne5 {[%emt 0:01:58]} Qf6 {[%emt 0:00:00]} (21... Qc7 $142) 22. Rfd1 {[%emt 0:01:24]} Rfd8 $2 {[%emt 0:00:00]} (22... Rc7) 23. c5 {[%emt 0:01:55]} g5 {[%emt 0:00:00]} 24. Rb3 {[%emt 0:14:11]} Rc7 {[%emt 0:00:00]} 25. g3 {[%emt 0:01:30] Weighted Error Value: White=0.64/Black=0.33} 1-0

[Event "Cabo Verde Open 2022"]
[Site "Mindelo-S. Vicente"]
[Date "2022.04.25"]
[Round "5.7"]
[White "Santiago, Yago De Moura"]
[Black "Neves, Diogo Alexandre"]
[Result "1-0"]
[ECO "D17"]
[WhiteElo "2490"]
[BlackElo "1555"]
[Annotator "TA"]
[PlyCount "35"]
[EventDate "2022.04.22"]
[EventType "swiss"]
[SourceTitle "playchess.com"]
[Source "ChessBase"]
[SourceQuality "1"]
[TimeControl "40/5400+30:1800+30"]

{[%evp 15,35,-16,-27,-16,60,76,90,77,102,90,147,146,306,313,309,305,605,606,1490,1440,1345,1220]} 1. d4 {[%emt 0:00:09]} d5 {[%emt 0:00:17]} 2. c4 {[%emt 0:00:22]} c6 {[%emt 0:00:13]} 3. Nf3 {[%emt 0:00:27]} Nf6 {[%emt 0:00:35]} 4. Nc3 {[%emt 0:00:32]} dxc4 {[%emt 0:00:25]} 5. a4 {[%emt 0:00:10]} Bf5 {[%emt 0:01:28]} 6. Ne5 {[%emt 0:00:24]} e6 {[%emt 0:00:25]} 7. f3 {[%emt 0:18:59]} Bb4 {[%emt 0:00:29]} 8. Bg5 {[%emt 0:00:06][%cal Bc1g5,Bg5h4,Bh4f2][%mdl 32] Recently 8.Nxc4 got a lot of attention.} h6 {[%emt 0:21:30]} 9. Bh4 {[%emt 0:04:38] D17: Slav Defence: 5 a4 Bf5: Lines with 6 Nh4 and 6 Ne5.} g5 {[%emt 0:05:04]} (9... c5 $11 10. dxc5 Qa5) 10. Bf2 $14 {[%emt 0:00:23]} Nd5 {[%emt 0:05:39]} 11. Qd2 {[%emt 0:03:39] White is better.} Bh7 {[%emt 0:15:19]} 12. e4 {[%emt 0:01:01]} Nf6 {[%emt 0:01:34]} (12... f6 $142) 13. Bxc4 $16 {[%emt 0:00:49] [#] &Bianco is more active.} c5 $146 {[%emt 0:06:00] [#]} (13... Nbd7 $16) ({Predecessor:} 13... Qa5 14. Bd3 Nbd7 15. Nc4 Qd8 16. a5 Qe7 17. O-O a6 18. e5 Nd5 19. Bxh7 Rxh7 {1-0 (38) Sanchez Cuchillo,A-Monmeneu Chulia,V Pref 1992}) 14. Bb5+ $18 {[%emt 0:03:02]} ({Weaker is} 14. dxc5 Qxd2+ 15. Kxd2 Nc6 $16) 14... Kf8 {[%emt 0:02:01]} 15. h4 {[%emt 0:01:54]} (15. dxc5 Qxd2+ 16. Kxd2 a6 $16) 15... Nfd7 $2 {[%emt 0:04:02]} (15... Rg8 16. hxg5 (16. dxc5 Qxd2+ 17. Kxd2 a6 $16) 16... hxg5) 16. dxc5 {[%emt 0:00:25] White is clearly winning.} Ke7 {[%emt 0:00:49]} 17. Qd6+ {[%emt 0:00:32]} Ke8 {[%emt 0:01:54]} 18. Rd1 {[%emt 0:00:09] Black did not feel at home in the position after the opening.  Weighted Error Value: White=0.00 (flawless) /Black=0.90} 1-0

[Event "Cabo Verde Open 2022"]
[Site "Mindelo-S. Vicente"]
[Date "2022.04.25"]
[Round "5.8"]
[White "Fortes, Aires"]
[Black "Junior, Ednasia"]
[Result "*"]
[ECO "B23"]
[WhiteElo "1540"]
[BlackElo "1898"]
[Annotator "NA RC COMBH"]
[PlyCount "32"]
[EventDate "2022.04.22"]
[EventType "swiss"]
[SourceTitle "playchess.com"]
[Source "ChessBase"]
[SourceQuality "1"]
[TimeControl "40/5400+30:1800+30"]

1. e4 {[%emt 0:02:16]} c5 {[%emt 0:00:05]} 2. Nc3 {[%emt 0:00:14]} e6 {[%emt 0:00:10]} 3. f4 {[%emt 0:00:40]} a6 {[%emt 0:00:06]} 4. Nf3 {[%emt 0:01:42]} Nc6 {[%emt 0:00:13]} 5. a4 {[%emt 0:02:40]} Qc7 {[%emt 0:00:30]} 6. d4 {[%emt 0:01:20]} cxd4 {[%emt 0:01:58]} 7. Nxd4 {[%emt 0:00:24]} Bb4 {[%emt 0:03:44]} 8. Be2 {[%emt 0:04:56]} Nf6 {[%emt 0:04:18]} 9. Bf3 {[%emt 0:01:52]} d6 {[%emt 0:00:00]} 10. O-O {[%emt 1:19:26]} Nxd4 {[%emt 0:00:00]} 11. Kh1 $19 {[%emt 0:06:55]} ({Worse is} 11. Qxd4 Bc5 12. Qe3 Qb6 13. Qxc5 Qxc5+) 11... Bxc3 {[%emt 0:00:00]} 12. bxc3 {[%emt 0:00:21]} Nxf3 {[%emt 0:00:00]} 13. Qxf3 {[%emt 0:00:27]} O-O {[%emt 0:00:00]} 14. Ba3 {[%emt 0:00:37]} Rd8 {[%emt 0:00:00]} 15. Rae1 {[%emt 0:03:29]} d5 {[%emt 0:00:00]} 16. e5 {[%emt 0:06:43]} Ne4 {[%emt 0:00:00]} *

[Event "Cabo Verde Open 2022"]
[Site "Mindelo-S. Vicente"]
[Date "2022.04.29"]
[Round "7.1"]
[White "Maisuradze, Nino"]
[Black "Ortega Amarelle, Mariano"]
[Result "0-1"]
[ECO "B23"]
[WhiteElo "2202"]
[BlackElo "2476"]
[Annotator "TA"]
[PlyCount "54"]
[EventDate "2022.04.22"]
[EventType "swiss"]
[SourceTitle "playchess.com"]
[Source "ChessBase"]
[SourceQuality "1"]
[TimeControl "40/5400+30:1800+30"]

{[%evp 10,54,16,0,19,16,23,20,106,8,12,18,17,16,18,6,15,3,25,0,16,-73,-22,-92,-86,-83,-83,-108,-87,-207,-191,-194,-190,-179,-162,-230,-186,-171,-152,-268,-270,-262,-268,-439,-435,-456,0]} 1. e4 {[%emt 0:01:01]} c5 {[%emt 0:05:06]} 2. Nc3 {[%emt 0:00:24]} a6 {[%emt 0:02:37]} 3. g3 {[%emt 0:00:41]} b5 {[%emt 0:00:11]} 4. Bg2 {[%emt 0:00:12]} Bb7 {[%emt 0:00:08]} 5. d3 {[%emt 0:02:00]} e6 {[%emt 0:02:06]} 6. Nh3 {[%emt 0:01:32]} Nf6 {[%emt 0:15:09] B23: Closed Sicilian: Lines without g3.} 7. O-O {[%emt 0:06:32]} d6 {[%emt 0:13:20]} 8. f4 {[%emt 0:01:04]} Be7 {[%emt 0:00:25]} (8... Qc8 $11) 9. g4 {[%emt 0:07:03]} (9. e5 $16 Bxg2 10. Kxg2) 9... b4 {[%emt 0:13:01]} 10. Na4 {[%emt 0:02:20] [#]} Bc6 $146 {[%emt 0:11:09]} ({Predecessor:} 10... Nfd7 11. c3 a5 12. d4 O-O 13. d5 exd5 14. exd5 c4 15. Be3 Na6 16. Nf2 Re8 {0-1 (36) Bulgarini Torre,M (1989)-Pichot,A (2517) Antofagasta 2016}) 11. b3 {[%emt 0:00:29]} Nfd7 {[%emt 0:01:58]} 12. g5 {[%emt 0:05:14]} Bxa4 13. bxa4 {[%emt 0:00:02][%cal Oe4e5]} Nc6 {[%emt 0:03:53] Inhibits e5.} 14. f5 {[%emt 0:18:23]} Nd4 {[%emt 0:10:12]} 15. fxe6 {[%emt 0:30:01]} (15. a3 $11) 15... Nxe6 $17 {[%emt 0:00:34]} 16. e5 {[%emt 0:00:30]} (16. a3 $1 $11 {keeps the balance.}) 16... Nxe5 {[%emt 0:02:54]} 17. Bxa8 {[%emt 0:00:30]} Qxa8 {[%emt 0:00:08]} 18. Bf4 {[%emt 0:01:28]} Nxf4 {[%emt 0:03:06] Black is much more active. The white rooks are badly placed.} 19. Rxf4 {[%emt 0:00:58] [#]} (19. Nxf4 $17 Bxg5 20. a3) 19... h6 $1 $19 {[%emt 0:00:43]} 20. g6 {[%emt 0:06:41]} fxg6 {[%emt 0:00:11][%cal Bf7g6,Bg6g5][%mdl 32]} ({Worse is} 20... Nxg6 21. Qf3 Qxf3 22. Rxf3 $17) 21. Qe2 {[%emt 0:01:52]} Bf6 {[%emt 0:03:28] ...0-0 is the strong threat.} 22. Raf1 {[%emt 0:01:12]} (22. Qg2 {was necessary.} Qxg2+ 23. Kxg2) 22... O-O {[%emt 0:00:15]} 23. Qg2 {[%emt 0:01:26]} Qc8 {[%emt 0:04:10]} 24. Qd5+ {[%emt 0:00:38]} (24. d4 $17 cxd4 25. Nf2) 24... Kh7 {[%emt 0:00:12]} 25. Kg2 {[%emt 0:00:46] [#]} g5 $1 {[%emt 0:00:51]} 26. Rf5 {[%emt 0:02:56]} (26. Re4 {was the only defense.}) 26... Ng6 {[%emt 0:01:07]} 27. Kh1 {[%emt 0:07:25]} Ne5 $2 {[%emt 0:07:06][%mdl 32768] Inhibits R5f3.  Weighted Error Value: White=0.41/Black=0.14 (very precise) . Loss on time!?} (27... Ne7 $19 28. Qe4 Nxf5 29. Qxf5+ Qxf5 30. Rxf5 Re8) 0-1

[Event "Cabo Verde Open 2022"]
[Site "Mindelo-S. Vicente"]
[Date "2022.04.28"]
[Round "7.2"]
[White "Galego, Luis"]
[Black "Del Rio De Angelis, Salvador G."]
[Result "1/2-1/2"]
[ECO "C01"]
[WhiteElo "2474"]
[BlackElo "2452"]
[Annotator "TA"]
[PlyCount "31"]
[EventDate "2022.04.22"]
[EventType "swiss"]
[SourceTitle "playchess.com"]
[Source "ChessBase"]
[SourceQuality "1"]
[TimeControl "40/5400+30:1800+30"]

{[%evp 9,31,16,12,9,12,10,12,11,19,5,16,0,0,0,4,-4,0,-5,0,0,-1,-8,0,0]} 1. d4 {[%emt 0:00:40]} e6 {[%emt 0:00:42]} 2. e4 {[%emt 0:03:27]} d5 {[%emt 0:00:17]} 3. exd5 {[%emt 0:00:13]} exd5 {[%emt 0:00:16]} 4. Nf3 {[%emt 0:00:08]} Bf5 {[%emt 0:00:52]} 5. Nc3 {[%emt 0:03:47][%cal Bb1c3,Bc3e2,Be2g3,Bg3f5][%mdl 32]} c6 {[%emt 0:02:27] The position is equal.} 6. Bd3 {[%emt 0:00:57] C01: French: Exchange Variation.} Bxd3 {[%emt 0:00:22]} 7. Qxd3 {[%emt 0:00:08]} Bd6 {[%emt 0:00:21]} 8. O-O {[%emt 0:01:22]} Ne7 {[%emt 0:00:16] [#]} 9. Bd2 $146 {[%emt 0:03:36]} ({Predecessor:} 9. Re1 O-O 10. Bg5 Qc7 11. Bxe7 Bxe7 12. Ne2 Bd6 13. Ng3 Bxg3 14. fxg3 Nd7 15. Re7 {0-1 (49) Gamha,S (1328)-Najjar,S (1532) Kelibia 2021}) 9... Na6 {[%emt 0:05:12]} 10. Ne2 {[%emt 0:01:20]} Qd7 {[%emt 0:00:27]} 11. Rfe1 {[%emt 0:04:02]} O-O {[%emt 0:02:35]} 12. Ng3 {[%emt 0:02:08]} f6 {[%emt 0:01:41]} 13. Re2 {[%emt 0:02:39]} Rae8 {[%emt 0:00:57]} 14. Rae1 {[%emt 0:01:29]} Nc8 {[%emt 0:02:31]} 15. Nf5 {[%emt 0:07:14]} Rxe2 {[%emt 0:05:08]} 16. Rxe2 {[%emt 0:01:57] A balanced but interesting game.  Weighted Error Value: White=0.04 (flawless) /Black=0.01 (flawless)} 1/2-1/2

[Event "Cabo Verde Open 2022"]
[Site "Mindelo-S. Vicente"]
[Date "2022.04.29"]
[Round "7.3"]
[White "Fernandes, Antonio"]
[Black "L`Ami, Alina"]
[Result "1-0"]
[ECO "B07"]
[WhiteElo "2313"]
[BlackElo "2287"]
[Annotator "TA"]
[PlyCount "89"]
[EventDate "2022.04.22"]
[EventType "swiss"]
[SourceTitle "playchess.com"]
[Source "ChessBase"]
[SourceQuality "1"]
[TimeControl "40/5400+30:1800+30"]

{[%evp 15,89,20,23,6,11,0,0,-9,7,0,0,0,-10,-24,-38,-18,-21,-57,-50,-85,-103,-195,-133,-127,-132,-131,-87,-104,-106,-106,-113,-109,-66,-57,-69,-72,-60,-82,-79,-81,-8,-8,-14,-29,-35,-31,0,-10,212,214,354,276,295,291,271,274,250,277,262,241,325,256,247,224,206,204,585,584,839,810,741,853,801,738,1577,1487]} 1. d4 {[%emt 0:08:02]} Nf6 {[%emt 0:00:05]} 2. g3 {[%emt 0:00:09]} g6 {[%emt 0:00:34]} 3. Bg2 {[%emt 0:01:13]} Bg7 {[%emt 0:00:18]} 4. e4 {[%emt 0:00:18]} d6 {[%emt 0:00:20]} 5. Nc3 {[%emt 0:00:09]} O-O {[%emt 0:02:15]} 6. Nge2 {[%emt 0:00:46]} c6 {[%emt 0:02:45]} 7. a4 {[%emt 0:00:08]} e5 {[%emt 0:02:38]} 8. h3 {[%emt 0:06:56]} Na6 {[%emt 0:12:31]} 9. Be3 {[%emt 0:06:24] B07: Pirc Defence: Miscellaneous Systems.} Be6 {[%emt 0:09:23]} 10. f4 {[%emt 0:22:38]} Re8 {[%emt 0:09:27]} 11. O-O {[%emt 0:01:22] The position is equal.} Bc4 {[%emt 0:07:54][%cal Of6e4]} (11... exd4 {looks sharper.} 12. Bxd4 Bc4 13. Re1 Qa5) 12. Re1 {[%emt 0:04:05] [#]} Bxe2 $146 {[%emt 0:05:18]} ({Predecessor:} 12... Nb4 13. a5 Bxe2 14. Rxe2 exf4 15. gxf4 Nh5 16. Qe1 Bh6 17. Qf2 d5 18. Ra4 Qe7 {½-½ (44) Begus,D (2269)-Balenovic,Z (2114) Grohote 2018}) 13. Rxe2 {[%emt 0:01:09]} Nh5 {[%emt 0:02:45]} 14. Kh2 {[%emt 0:32:44]} exf4 {[%emt 0:04:18]} 15. gxf4 {[%emt 0:00:29]} (15. Bxf4 Nxf4 16. gxf4 Qf6 $17) 15... Bh6 {[%emt 0:02:31]} 16. Rf2 {[%emt 0:00:47]} f5 {[%emt 0:05:01]} (16... Qh4 17. Qg4 Qd8 18. Qf3 $11) 17. Bd2 {[%emt 0:06:07]} Qh4 {[%emt 0:02:59][%csl LRf2,LRf4]} 18. Qf1 {[%emt 0:05:31] [#]} (18. Qf3 $2 fxe4 19. Qe3 Nb4 $19) (18. Kg1 $17) 18... fxe4 {[%emt 0:08:00]} (18... Nb4 $1 $19 {[%cal Rb4c2]} 19. Nd1 a5) 19. Nxe4 $17 {[%emt 0:00:04]} d5 {[%emt 0:02:01]} 20. Ng5 {[%emt 0:00:33]} Rf8 {[%emt 0:11:19] White must now prevent ...Bxg5.} 21. Rf3 {[%emt 0:00:42] Strongly threatening Be1.} Bxg5 {[%emt 0:01:21]} 22. fxg5 {[%emt 0:00:02]} Qxd4 {[%emt 0:02:52]} ({And not} 22... Rxf3 23. Qxf3 Qxd4 24. Bc3 Qf4+ 25. Qxf4 Nxf4 26. Re1 $15) 23. Bc3 {[%emt 0:00:06]} Qh4 {[%emt 0:00:24]} 24. Qe1 {[%emt 0:00:29]} Qxe1 {[%emt 0:01:17]} 25. Rxe1 {[%emt 0:00:02]} Rae8 {[%emt 0:01:45] Prevents Re7.} 26. Rfe3 {[%emt 0:00:16]} Rxe3 {[%emt 0:01:08]} 27. Rxe3 {[%emt 0:00:01]} Kf7 {[%emt 0:00:22]} ({Black should try} 27... Rf2 $17 28. Re8+ Kf7) 28. Bd4 $11 {[%emt 0:02:23]} b6 {[%emt 0:01:27]} 29. c4 {[%emt 0:00:05]} (29. a5 $5) 29... Nf4 {[%emt 0:00:43]} 30. Bf1 {[%emt 0:00:30]} Nc7 {[%emt 0:01:07]} 31. Be5 {[%emt 0:00:36][%csl LRc7,LRf4]} Nce6 {[%emt 0:00:17] [#]} (31... Nfe6 $1 $11 {and Black has nothing to worry.}) 32. Bd6 $1 $18 {[%emt 0:00:39] aiming for Rf3. A strong pair of Bishops.} d4 {[%emt 0:00:44]} (32... Nd4 $142 33. Bxf8 (33. Bxf4 Kg8 $16) 33... Kxf8) 33. Re4 {[%emt 0:00:49]} Kg8 {[%emt 0:00:35]} 34. Bxf8 {[%emt 0:00:39]} Kxf8 {[%emt 0:00:01][%mdl 4096] Endgame KRB-KNN} 35. h4 {[%emt 0:00:32]} ({Less strong is} 35. Kg3 Nh5+ 36. Kf2 Nhg7 $16) 35... Ke7 {[%emt 0:01:01]} 36. Kg3 {[%emt 0:00:29]} Nh5+ {[%emt 0:00:02]} 37. Kf3 {[%emt 0:00:08]} Kd6 {[%emt 0:00:22]} 38. Bh3 {[%emt 0:00:26]} Nhg7 {[%emt 0:00:08]} 39. Ke2 {[%emt 0:00:57]} Nf5 {[%emt 0:01:02] ...Ng3+ is the strong threat.} 40. Kd2 {[%emt 0:00:00]} Nc5 $2 {[%emt 0:00:00]} (40... Neg7 {is tougher.} 41. Bxf5 Nxf5) 41. Bxf5 {[%emt 0:00:45] White is clearly winning.} Nb3+ {[%emt 0:32:00]} 42. Kd3 {[%emt 0:06:12]} gxf5 {[%emt 0:00:00]} 43. Re8 {[%emt 0:00:26]} f4 {[%emt 0:00:00]} 44. Ke4 {[%emt 0:09:14]} c5 {[%emt 0:00:00]} 45. h5 {[%emt 0:16:58] Quite a comeback for White.  Weighted Error Value: White=0.16 (very precise) /Black=0.44} 1-0

[Event "Cabo Verde Open 2022"]
[Site "Mindelo-S. Vicente"]
[Date "2022.04.29"]
[Round "7.4"]
[White "Varela La Madrid, Tilsia Carolina"]
[Black "Santiago, Yago De Moura"]
[Result "0-1"]
[ECO "B07"]
[WhiteElo "2097"]
[BlackElo "2490"]
[Annotator "TA"]
[PlyCount "36"]
[EventDate "2022.04.22"]
[EventType "swiss"]
[SourceTitle "playchess.com"]
[Source "ChessBase"]
[SourceQuality "1"]
[TimeControl "40/5400+30:1800+30"]

{[%evp 11,36,57,77,20,14,23,18,12,15,14,69,67,81,68,102,108,102,79,108,81,70,46,44,0,0,-9,-37]} 1. e4 {[%emt 1:31:00]} d6 {[%emt 0:02:10]} 2. d4 {[%emt 0:00:00]} Nf6 {[%emt 0:00:07]} 3. Nc3 {[%emt 0:00:00]} c6 {[%emt 0:00:43]} 4. f4 {[%emt 0:00:00]} Qa5 {[%emt 0:01:04]} 5. Bd2 {[%emt 0:00:00]} Qb6 {[%emt 0:03:30]} 6. Nf3 {[%emt 0:00:00]} Bg4 {[%emt 0:08:56]} 7. Be2 {[%emt 0:00:00] B07: Pirc Defence: Miscellaneous Systems.} (7. e5 $16 Nd5 8. exd6) 7... Bxf3 $11 {[%emt 0:06:07]} 8. Bxf3 {[%emt 0:00:00] e5 is the strong threat.} Qxd4 {[%emt 0:00:18]} 9. Qe2 {[%emt 0:00:00] And now e5 would win.} e5 {[%emt 0:00:53]} 10. O-O-O {[%emt 0:00:00]} Qb6 {[%emt 0:01:43] [#]} ({Black should play} 10... Nbd7 $11) 11. fxe5 $146 {[%emt 0:00:00]} ({Much worse is} 11. Be3 Qa5 $11) ({Predecessor:} 11. Be3 Qa5 12. Kb1 Nbd7 13. Rhf1 b5 14. Qd2 O-O-O 15. Qf2 Kb8 16. g4 h5 17. h3 hxg4 18. hxg4 {0-1 (49) Wieprecht,G (1939)-Mentel,J (2056) Bad Sooden-Allendorf 2012}) 11... dxe5 {[%emt 0:00:24]} 12. g4 {[%emt 0:00:00][%cal Bg2g4,Bg4g5][%mdl 32]} Be7 {[%emt 0:14:01]} 13. g5 {[%emt 0:00:00][%mdl 1024] White has strong compensation.} Nfd7 {[%emt 0:00:06]} 14. Bg4 {[%emt 0:00:00]} ({But not} 14. Be3 $6 Bc5 15. Bd2 Bd4 $11) 14... Qc7 {[%emt 0:03:06]} 15. Qf3 {[%emt 0:00:00]} Nb6 {[%emt 0:05:17]} 16. Rhf1 {[%emt 0:00:00]} O-O {[%emt 0:01:12]} 17. Qe2 {[%emt 0:00:00] Inhibits Nc4.} Na6 {[%emt 0:14:21]} 18. Rf3 {[%emt 0:00:00]} Rad8 {[%emt 0:02:15] Weighted Error Value: White=0.13 (very precise) /Black=0.13 (very precise)} 0-1

[Event "Cabo Verde Open 2022"]
[Site "Mindelo-S. Vicente"]
[Date "2022.04.28"]
[Round "7.5"]
[White "Strikovic, Aleksa"]
[Black "Lesbros, Bernard"]
[Result "1-0"]
[ECO "A34"]
[WhiteElo "2489"]
[BlackElo "1865"]
[Annotator "TA"]
[PlyCount "46"]
[EventDate "2022.04.22"]
[EventType "swiss"]
[SourceTitle "playchess.com"]
[Source "ChessBase"]
[SourceQuality "1"]
[TimeControl "40/5400+30:1800+30"]

{[%evp 20,33,11,7,54,35,66,60,68,16,13,5,9,0,0,10]} 1. c4 {[%emt 0:00:04]} c5 {[%emt 0:00:46]} 2. Nf3 {[%emt 0:00:06]} Nf6 {[%emt 0:00:28]} 3. Nc3 {[%emt 0:00:09]} d5 {[%emt 0:02:57]} 4. cxd5 {[%emt 0:00:41]} Nxd5 {[%emt 0:00:28]} 5. g3 {[%emt 0:01:32]} Nc6 {[%emt 0:00:17]} 6. Bg2 {[%emt 0:00:07]} Nc7 {[%emt 0:00:15]} 7. d3 {[%emt 0:00:18]} e5 {[%emt 0:00:14]} 8. Nd2 {[%emt 0:00:18]} Be7 {[%emt 0:01:31]} 9. Nc4 {[%emt 0:02:31]} f6 {[%emt 0:05:03]} 10. O-O {[%emt 0:00:18]} O-O {[%emt 0:00:27]} 11. f4 {[%emt 0:00:26]} Be6 {[%emt 0:07:20] A34: Symmetrical English: 2 Nc3, lines with ...d5.} (11... exf4 $11 12. Bxf4 Ne6) 12. fxe5 {[%emt 0:15:55]} (12. Bxc6 $5 bxc6 13. fxe5 $14) 12... fxe5 {[%emt 0:01:41]} 13. Rxf8+ {[%emt 0:04:09]} Bxf8 {[%emt 0:00:56]} 14. Be3 {[%emt 0:02:50]} (14. Qa4 $14) 14... Nd5 $11 {[%emt 0:12:41] The position is equal.} 15. Nxd5 {[%emt 0:01:43]} Bxd5 {[%emt 0:00:09]} 16. Qb3 {[%emt 0:00:06][%cal Oe3g5]} Nd4 {[%emt 0:12:13]} 17. Bxd4 {[%emt 0:03:32][%mdl 32768] [#]  Weighted Error Value: White=0.19 (very precise) /Black=0.22 (precise) . Loss on time!?} {Predecessor:} exd4 $146 18. Bxd5+ Qxd5 19. Nb6 Qxb3 20. axb3 Re8 21. Rxa7 Rxe2 22. Rxb7 g6 23. Nd5 Bg7 {1-0 (41) Hujo,J (2108)-Micek,J (2071) Slovakia 2007} 1-0